[Event "46th GRE-chT Premier 2018"]
[Site "Rio Achaia"]
[Date "2018.07.10"]
[Round "1"]
[White "Pavlidis, Anastasios"]
[Black "Pappas, Apostolos"]
[Result "1-0"]
[ECO "B08"]
[WhiteElo "2362"]
[BlackElo "2034"]
[Annotator "NA"]
[PlyCount "65"]
[EventDate "2018.07.10"]
[EventType "team-tourn"]
[EventCountry "GRE"]
[SourceTitle "playchess.com"]
[Source "ChessBase"]
[SourceQuality "1"]
[TimeControl "40/5400+30:1800+30"]

1. d4 {[%emt 0:00:00]} d6 {[%emt 0:00:00]} 2. e4 {[%emt 0:00:00]} Nf6 {[%emt 0:00:00]} 3. Nc3 {[%emt 0:00:13]} g6 {[%emt 0:00:00]} 4. Nf3 {[%emt 0:02:03]} Bg7 {[%emt 0:00:00]} 5. Bg5 {[%emt 0:00:45]} h6 {[%emt 0:00:00]} 6. Be3 {[%emt 0:00:47]} O-O {[%emt 0:00:10]} 7. h3 {[%emt 0:00:57]} a6 {[%emt 0:02:17]} 8. a4 {[%emt 0:02:04]} Nc6 {[%emt 0:00:02]} 9. Qd2 {[%emt 0:02:39]} Kh7 {[%emt 0:03:24]} 10. d5 {[%emt 0:02:45]} Ne5 {[%emt 0:01:23]} 11. Nxe5 {[%emt 0:01:28]} dxe5 {[%emt 0:00:06]} 12. Bc4 {[%emt 0:00:56]} Ne8 {[%emt 0:02:16]} 13. O-O {[%emt 0:01:13]} Nd6 {[%emt 0:00:02]} 14. Bb3 {[%emt 0:00:32]} g5 {[%emt 0:06:48]} 15. g4 {[%emt 0:02:44]} Bd7 {[%emt 0:00:13]} 16. f3 {[%emt 0:00:45]} b5 {[%emt 0:05:32]} 17. axb5 {[%emt 0:03:32]} axb5 {[%emt 0:02:05]} 18. Kg2 {[%emt 0:00:25]} Qb8 {[%emt 0:00:45]} 19. h4 {[%emt 0:04:55]} f6 {[%emt 0:01:04]} 20. Ne2 {[%emt 0:06:00]} Rxa1 {[%emt 0:22:48]} 21. Rxa1 {[%emt 0:00:10]} h5 {[%emt 0:00:55]} 22. gxh5 {[%emt 0:07:17]} g4 {[%emt 0:02:16]} 23. h6 {[%emt 0:00:33]} gxf3+ {[%emt 0:01:46]} 24. Kxf3 {[%emt 0:00:13]} Bh8 {[%emt 0:02:41]} 25. Ng3 {[%emt 0:02:55]} f5 {[%emt 0:01:12]} 26. exf5 {[%emt 0:02:02]} e4+ {[%emt 0:02:44]} 27. Ke2 {[%emt 0:03:31]} Bxf5 {[%emt 0:02:13]} 28. Nxf5 {[%emt 0:00:48]} Nxf5 {[%emt 0:01:17]} 29. Rg1 {[%emt 0:01:36]} c5 {[%emt 0:03:28]} 30. dxc6 {[%emt 0:08:06]} Rd8 {[%emt 0:13:49]} 31. Qxd8 {[%emt 0:02:03]} Qxd8 {[%emt 0:00:07]} 32. c7 {[%emt 0:00:13]} Nd4+ {[%emt 0:01:50]} 33. Kd1 {[%emt 0:00:21]} 1-0

[Event "46th GRE-chT Premier 2018"]
[Site "Rio Achaia"]
[Date "2018.07.10"]
[Round "1"]
[White "Papadopoulos, Georgios"]
[Black "Kazantzidis, Ilias"]
[Result "1-0"]
[ECO "D00"]
[WhiteElo "2352"]
[BlackElo "2182"]
[Annotator "NA"]
[PlyCount "85"]
[EventDate "2018.07.10"]
[EventType "team-tourn"]
[EventCountry "GRE"]
[SourceTitle "playchess.com"]
[Source "ChessBase"]
[SourceQuality "1"]
[TimeControl "40/5400+30:1800+30"]

1. d4 {[%emt 0:00:00]} d5 {[%emt 0:00:00]} 2. Bf4 {[%emt 0:00:00]} Nf6 {[%emt 0:00:00]} 3. e3 {[%emt 0:00:00]} c5 {[%emt 0:00:00]} 4. Nf3 {[%emt 0:00:00]} Nc6 {[%emt 0:00:15]} 5. Nbd2 {[%emt 0:00:01]} Qb6 {[%emt 0:00:33]} 6. dxc5 {[%emt 0:01:01]} Qxb2 {[%emt 0:00:07]} 7. Rb1 {[%emt 0:00:15]} Qc3 {[%emt 0:00:06]} 8. Bd3 {[%emt 0:03:08]} Qxc5 {[%emt 0:05:55]} 9. O-O {[%emt 0:01:42]} e6 {[%emt 0:11:19]} 10. c4 {[%emt 0:00:12]} Qa5 {[%emt 0:25:13]} 11. e4 {[%emt 0:15:34]} dxe4 {[%emt 0:05:02]} 12. Nxe4 {[%emt 0:00:58]} Nxe4 {[%emt 0:06:49]} 13. Bxe4 {[%emt 0:00:07]} Be7 {[%emt 0:08:21]} 14. Qc2 {[%emt 0:05:48]} f5 {[%emt 0:06:59]} 15. Bxc6+ {[%emt 0:13:02]} bxc6 {[%emt 0:00:02]} 16. Nd4 {[%emt 0:05:41]} Bf6 {[%emt 0:06:48]} 17. Nxc6 {[%emt 0:18:00]} Qc5 {[%emt 0:00:28]} 18. Nb4 {[%emt 0:00:48]} O-O {[%emt 0:09:46]} 19. Rfd1 {[%emt 0:14:40]} Bd4 {[%emt 0:01:02]} 20. Nd3 {[%emt 0:02:40]} Qc6 {[%emt 0:02:19]} 21. Ne5 {[%emt 0:03:03]} Bxe5 {[%emt 0:00:49]} 22. Bxe5 {[%emt 0:00:02]} Bb7 {[%emt 0:01:15]} 23. f3 {[%emt 0:00:16]} Rad8 {[%emt 0:04:11]} 24. Qc3 {[%emt 0:07:35]} Rd7 {[%emt 0:02:44]} 25. Rxd7 {[%emt 0:00:58]} Qxd7 {[%emt 0:00:02]} 26. Bxg7 {[%emt 0:00:11]} Rc8 {[%emt 0:01:19]} 27. Be5 {[%emt 0:01:58]} Ba6 {[%emt 0:01:33]} 28. Qe3 {[%emt 0:00:58]} Bxc4 {[%emt 0:00:32]} 29. Qg5+ {[%emt 0:00:30]} Kf8 {[%emt 0:00:13]} 30. Qf6+ {[%emt 0:03:16]} Qf7 {[%emt 0:00:07]} 31. Qh8+ {[%emt 0:00:25]} Qg8 {[%emt 0:00:04]} 32. Bd6+ {[%emt 0:00:35]} Kf7 {[%emt 0:00:06]} 33. Qd4 {[%emt 0:02:07]} Kg6 {[%emt 0:01:49]} 34. Qxa7 {[%emt 0:00:52]} Qd8 {[%emt 0:00:27]} 35. Be5 {[%emt 0:00:27]} Qf8 {[%emt 0:00:43]} 36. Bd4 {[%emt 0:00:35]} Ra8 {[%emt 0:00:27]} 37. Qc7 {[%emt 0:00:19]} Bxa2 {[%emt 0:00:25]} 38. Qg3+ {[%emt 0:00:40]} Kh5 {[%emt 0:00:31]} 39. Qh3+ {[%emt 0:00:14]} Kg6 {[%emt 0:00:23]} 40. Qg3+ {[%emt 0:00:00]} Kh5 {[%emt 0:00:00]} 41. Rb7 {[%emt 0:02:51]} Qh6 {[%emt 0:06:52]} 42. Qh3+ {[%emt 0:01:07]} Kg6 {[%emt 0:00:16]} 43. Rg7+ {[%emt 0:00:05]} 1-0

[Event "46th GRE-chT Premier 2018"]
[Site "Rio Achaia"]
[Date "2018.07.10"]
[Round "1"]
[White "Georgiev, Krum"]
[Black "Dorfanis, Ilarion"]
[Result "1-0"]
[ECO "A06"]
[WhiteElo "2330"]
[BlackElo "2179"]
[Annotator "NA"]
[PlyCount "75"]
[EventDate "2018.07.10"]
[EventType "team-tourn"]
[EventCountry "GRE"]
[SourceTitle "playchess.com"]
[Source "ChessBase"]
[SourceQuality "1"]
[TimeControl "40/5400+30:1800+30"]

1. Nf3 {[%emt 0:00:00]} d5 {[%emt 0:00:00]} 2. g3 {[%emt 0:00:00]} g6 {[%emt 0:02:56]} 3. Bg2 {[%emt 0:04:06]} Bg7 {[%emt 0:00:09]} 4. O-O {[%emt 0:03:55]} e5 {[%emt 0:01:03]} 5. d3 {[%emt 0:00:16]} Ne7 {[%emt 0:00:58]} 6. Nbd2 {[%emt 0:00:40]} O-O {[%emt 0:00:46]} 7. e4 {[%emt 0:03:14]} d4 {[%emt 0:05:26]} 8. Nc4 {[%emt 0:04:11]} Nbc6 {[%emt 0:00:16]} 9. a4 {[%emt 0:00:16]} Be6 {[%emt 0:05:51]} 10. Ng5 {[%emt 0:07:45]} Bd7 {[%emt 0:10:04]} 11. Bd2 {[%emt 0:21:44]} f6 {[%emt 0:09:50]} 12. Nf3 {[%emt 0:00:21]} a6 {[%emt 0:07:19]} 13. b4 {[%emt 0:14:45]} b5 {[%emt 0:03:42]} 14. axb5 {[%emt 0:00:09]} axb5 {[%emt 0:00:09]} 15. Na3 {[%emt 0:00:07]} Qb8 {[%emt 0:03:13]} 16. c3 {[%emt 0:00:23]} Be6 {[%emt 0:13:40]} 17. cxd4 {[%emt 0:14:16]} exd4 {[%emt 0:00:37]} 18. e5 {[%emt 0:02:24]} fxe5 {[%emt 0:17:32]} 19. Ng5 {[%emt 0:00:12]} Bd5 {[%emt 0:02:18]} 20. Bxd5+ {[%emt 0:15:34]} Nxd5 {[%emt 0:00:04]} 21. Qb3 {[%emt 0:00:21]} Nce7 {[%emt 0:00:19]} 22. Ne6 {[%emt 0:00:13]} Rf5 23. Rfc1 {[%emt 0:05:19]} c6 {[%emt 0:07:19]} 24. Rxc6 {[%emt 0:00:07]} Nxc6 {[%emt 0:00:52]} 25. Qxd5 {[%emt 0:00:03]} Ne7 {[%emt 0:00:31]} 26. Qb3 {[%emt 0:00:03]} Kh8 {[%emt 0:01:36]} 27. Rc1 {[%emt 0:00:09]} Ra6 {[%emt 0:03:19]} 28. Ng5 {[%emt 0:00:19]} h6 {[%emt 0:01:54]} 29. Ne4 {[%emt 0:00:05]} Qa8 {[%emt 0:02:13]} 30. Nxb5 {[%emt 0:00:15]} Ra1 {[%emt 0:00:25]} 31. Rxa1 {[%emt 0:01:18]} Qxa1+ {[%emt 0:00:03]} 32. Kg2 {[%emt 0:00:02]} Kh7 {[%emt 0:00:46]} 33. Nbd6 {[%emt 0:02:13]} Qa8 {[%emt 0:00:41]} 34. Qe6 {[%emt 0:00:20]} Nd5 {[%emt 0:00:35]} 35. Nxf5 {[%emt 0:00:15]} gxf5 {[%emt 0:00:17]} 36. Qxf5+ {[%emt 0:00:03]} Kh8 {[%emt 0:00:20]} 37. Qg6 {[%emt 0:00:21]} Nc3 {[%emt 0:00:55]} 38. Bxh6 {[%emt 0:00:17]} 1-0

[Event "46th GRE-chT Premier 2018"]
[Site "Rio Achaia"]
[Date "2018.07.10"]
[Round "1"]
[White "Hristodoulou, Panagiotis"]
[Black "Tsagkaropoulos, Spyridon"]
[Result "1-0"]
[ECO "C49"]
[WhiteElo "2329"]
[BlackElo "2052"]
[Annotator "NA"]
[PlyCount "101"]
[EventDate "2018.07.10"]
[EventType "team-tourn"]
[EventCountry "GRE"]
[SourceTitle "playchess.com"]
[Source "ChessBase"]
[SourceQuality "1"]
[TimeControl "40/5400+30:1800+30"]

1. e4 {[%emt 0:00:00]} e5 {[%emt 0:00:00]} 2. Nf3 {[%emt 0:00:00]} Nc6 {[%emt 0:00:00]} 3. Nc3 {[%emt 0:06:05]} Nf6 {[%emt 0:00:00]} 4. Bb5 {[%emt 0:00:07]} Bb4 {[%emt 0:00:36]} 5. O-O {[%emt 0:00:12]} O-O {[%emt 0:00:12]} 6. d3 {[%emt 0:00:06]} d6 {[%emt 0:00:04]} 7. Bg5 {[%emt 0:00:11]} Bxc3 {[%emt 0:00:50]} 8. bxc3 {[%emt 0:00:02]} Qe7 {[%emt 0:00:11]} 9. Nd2 {[%emt 0:00:12]} h6 {[%emt 0:02:12]} 10. Bh4 {[%emt 0:00:17]} Nd8 {[%emt 0:02:16]} 11. Re1 {[%emt 0:08:20]} Ne6 {[%emt 0:02:22]} 12. f3 {[%emt 0:02:14]} Nf4 {[%emt 0:04:17]} 13. Nf1 {[%emt 0:02:44]} a5 {[%emt 0:04:10]} 14. a4 {[%emt 0:02:26]} g5 {[%emt 0:08:03]} 15. Bf2 {[%emt 0:00:42]} Kh7 {[%emt 0:02:32]} 16. Ne3 {[%emt 0:02:57]} Rg8 {[%emt 0:03:45]} 17. d4 {[%emt 0:12:02]} g4 {[%emt 0:03:33]} 18. Bh4 {[%emt 0:00:41]} h5 {[%emt 0:06:37]} 19. Nd5 {[%emt 0:07:12]} N4xd5 {[%emt 0:01:53]} 20. exd5 {[%emt 0:00:03]} Bf5 {[%emt 0:02:30]} 21. Bd3 {[%emt 0:02:06]} Bxd3 {[%emt 0:01:00]} 22. Qxd3+ {[%emt 0:00:03]} Rg6 {[%emt 0:00:07]} 23. fxg4 {[%emt 0:11:43]} hxg4 {[%emt 0:01:14]} 24. Rf1 {[%emt 0:00:20]} Kg7 {[%emt 0:00:38]} 25. Qf5 {[%emt 0:07:43]} Re8 {[%emt 0:17:51]} 26. Rf2 {[%emt 0:12:53]} Rh8 {[%emt 0:09:59]} 27. Bxf6+ {[%emt 0:00:22]} Qxf6 {[%emt 0:00:13]} 28. Qd7 {[%emt 0:00:06]} Qg5 {[%emt 0:00:38]} 29. Rxf7+ {[%emt 0:07:27]} Kh6 {[%emt 0:00:06]} 30. Raf1 {[%emt 0:00:14]} exd4 {[%emt 0:05:18]} 31. cxd4 {[%emt 0:00:34]} Qe3+ {[%emt 0:01:01]} 32. Kh1 {[%emt 0:00:02]} Qxd4 {[%emt 0:00:36]} 33. R7f5 {[%emt 0:08:37]} Qe4 {[%emt 0:05:45]} 34. Qxc7 {[%emt 0:01:47]} Re8 {[%emt 0:00:11]} 35. Qc3 {[%emt 0:03:12]} Qe3 {[%emt 0:02:01]} 36. Qxa5 {[%emt 0:00:05]} Qc5 {[%emt 0:05:42]} 37. Qd2+ {[%emt 0:00:42]} Qe3 {[%emt 0:00:01]} 38. Qa5 {[%emt 0:00:06]} Qc5 {[%emt 0:00:07]} 39. Qd2+ {[%emt 0:00:44]} Qe3 {[%emt 0:00:02]} 40. Qb4 {[%emt 0:00:00]} Qe4 {[%emt 0:00:00]} 41. Qb5 {[%emt 0:13:35]} Re7 {[%emt 0:05:42]} 42. Rf8 {[%emt 0:09:58]} Qxc2 {[%emt 0:07:40]} 43. Qb4 {[%emt 0:00:18]} Qe4 {[%emt 0:00:58]} 44. Qc3 {[%emt 0:00:58]} Qe5 {[%emt 0:04:00]} 45. Qc1+ {[%emt 0:01:18]} Kh7 {[%emt 0:05:02]} 46. Qc8 {[%emt 0:01:51]} Rgg7 {[%emt 0:00:29]} 47. Rh8+ {[%emt 0:01:22]} Kg6 {[%emt 0:00:05]} 48. Qxg4+ {[%emt 0:00:09]} Qg5 {[%emt 0:00:07]} 49. Qf3 {[%emt 0:00:49]} Re3 {[%emt 0:01:53]} 50. Qf2 {[%emt 0:00:02]} Qe7 {[%emt 0:01:44]} 51. Qf5# 1-0

[Event "46th GRE-chT Premier 2018"]
[Site "Rio Achaia"]
[Date "2018.07.10"]
[Round "1"]
[White "Kofidis, Andreas"]
[Black "Karapiperis, Alexandros"]
[Result "1/2-1/2"]
[ECO "C49"]
[WhiteElo "2321"]
[BlackElo "1973"]
[Annotator "NA"]
[PlyCount "139"]
[EventDate "2018.07.10"]
[EventType "team-tourn"]
[EventCountry "GRE"]
[SourceTitle "playchess.com"]
[Source "ChessBase"]
[SourceQuality "1"]
[TimeControl "40/5400+30:1800+30"]

1. e4 {[%emt 0:04:13]} e5 {[%emt 0:00:00]} 2. Nf3 {[%emt 0:00:06]} Nc6 {[%emt 0:00:00]} 3. Nc3 {[%emt 0:00:05]} Nf6 {[%emt 0:00:10]} 4. Bb5 {[%emt 0:00:05]} Bb4 {[%emt 0:00:25]} 5. O-O {[%emt 0:00:17]} O-O {[%emt 0:00:19]} 6. d3 {[%emt 0:00:12]} Bxc3 {[%emt 0:00:40]} 7. bxc3 {[%emt 0:00:05]} d6 {[%emt 0:00:17]} 8. h3 {[%emt 0:02:04]} Ne7 {[%emt 0:04:42]} 9. Re1 {[%emt 0:01:25]} a6 {[%emt 0:01:56]} 10. Bc4 {[%emt 0:00:37]} b5 {[%emt 0:00:07]} 11. Bb3 {[%emt 0:00:06]} Ng6 {[%emt 0:01:17]} 12. a4 {[%emt 0:01:28]} Bb7 {[%emt 0:01:15]} 13. Bd2 {[%emt 0:08:32]} c5 {[%emt 0:03:33]} 14. axb5 {[%emt 0:08:35]} axb5 {[%emt 0:00:08]} 15. c4 {[%emt 0:00:09]} b4 {[%emt 0:01:25]} 16. Bg5 {[%emt 0:07:48]} Rxa1 {[%emt 0:04:43]} 17. Qxa1 {[%emt 0:00:06]} h6 {[%emt 0:00:08]} 18. Bd2 {[%emt 0:01:33]} Nh5 {[%emt 0:02:14]} 19. c3 {[%emt 0:09:33]} bxc3 {[%emt 0:01:17]} 20. Qxc3 {[%emt 0:00:04]} Nhf4 {[%emt 0:03:51]} 21. Bd1 {[%emt 0:02:57]} Qf6 {[%emt 0:03:39]} 22. Kh2 {[%emt 0:08:26]} Bc8 {[%emt 0:02:37]} 23. Ng1 {[%emt 0:03:56]} Nh4 {[%emt 0:20:40]} 24. g3 {[%emt 0:01:22]} Nxd3 {[%emt 0:00:05]} 25. Rf1 {[%emt 0:00:16]} Nxf2 {[%emt 0:00:35]} 26. gxh4 {[%emt 0:00:36]} Nxd1 {[%emt 0:05:58]} 27. Qd3 {[%emt 0:01:57]} Nb2 {[%emt 0:05:12]} 28. Qb1 {[%emt 0:00:13]} Qe6 {[%emt 0:01:55]} 29. Qxb2 {[%emt 0:00:31]} Qxc4 {[%emt 0:00:05]} 30. Re1 {[%emt 0:02:04]} f5 {[%emt 0:02:41]} 31. Qc3 {[%emt 0:03:11]} Qe6 {[%emt 0:04:35]} 32. exf5 {[%emt 0:03:52]} Qxf5 {[%emt 0:00:13]} 33. Be3 {[%emt 0:00:14]} Kh8 {[%emt 0:06:21]} 34. Re2 {[%emt 0:03:14]} Bb7 {[%emt 0:03:15]} 35. Qc2 {[%emt 0:00:34]} Qe6 {[%emt 0:02:16]} 36. Rf2 {[%emt 0:00:47]} Rxf2+ {[%emt 0:01:01]} 37. Qxf2 {[%emt 0:00:13]} c4 {[%emt 0:01:26]} 38. Ne2 {[%emt 0:04:08]} d5 {[%emt 0:02:07]} 39. Qf8+ {[%emt 0:08:35]} Kh7 {[%emt 0:00:09]} 40. Qf3 {[%emt 0:00:00]} Bc6 {[%emt 0:00:00]} 41. Qg4 {[%emt 0:02:36]} Qf7 {[%emt 0:08:49]} 42. Qg3 {[%emt 0:08:57]} Qf6 {[%emt 0:02:08]} 43. Qf2 {[%emt 0:00:53]} Qg6 {[%emt 0:04:07]} 44. Bc5 {[%emt 0:10:29]} Bd7 {[%emt 0:05:05]} 45. Qg3 {[%emt 0:04:20]} Qe4 {[%emt 0:14:04]} 46. Nc3 {[%emt 0:01:10]} Qc2+ {[%emt 0:00:05]} 47. Kg1 {[%emt 0:00:07]} d4 {[%emt 0:01:05]} 48. Bf8 {[%emt 0:01:45]} Qg6 {[%emt 0:00:13]} 49. Ne4 {[%emt 0:04:58]} Qxg3+ {[%emt 0:03:04]} 50. Nxg3 {[%emt 0:00:05]} c3 {[%emt 0:00:25]} 51. Kf2 {[%emt 0:03:28]} Bc6 {[%emt 0:08:40]} 52. h5 {[%emt 0:07:10]} d3 {[%emt 0:01:54]} 53. Nf1 {[%emt 0:01:29]} d2 {[%emt 0:02:33]} 54. Nxd2 {[%emt 0:00:09]} cxd2 {[%emt 0:00:05]} 55. Ke2 {[%emt 0:00:03]} Bg2 {[%emt 0:00:26]} 56. h4 {[%emt 0:00:11]} Bf3+ {[%emt 0:00:05]} 57. Kxd2 {[%emt 0:00:04]} Bxh5 {[%emt 0:00:03]} 58. Bd6 {[%emt 0:00:21]} e4 {[%emt 0:00:05]} 59. Ke3 {[%emt 0:00:04]} Bf3 {[%emt 0:00:07]} 60. Kf4 {[%emt 0:00:30]} Kg6 {[%emt 0:00:14]} 61. Be5 {[%emt 0:01:20]} Kf7 {[%emt 0:01:04]} 62. Bd4 {[%emt 0:00:16]} g6 {[%emt 0:00:38]} 63. Bc3 {[%emt 0:00:29]} Ke6 {[%emt 0:02:10]} 64. Bg7 {[%emt 0:03:47]} g5+ {[%emt 0:00:08]} 65. hxg5 {[%emt 0:00:05]} h5 {[%emt 0:00:04]} 66. g6 {[%emt 0:00:05]} h4 {[%emt 0:00:18]} 67. Bd4 {[%emt 0:00:08]} h3 {[%emt 0:00:13]} 68. Kg3 {[%emt 0:00:06]} Bg4 {[%emt 0:00:33]} 69. Kh2 {[%emt 0:00:38]} Kd5 {[%emt 0:01:05]} 70. Be3 {[%emt 0:00:37]} 1/2-1/2

[Event "46th GRE-chT Premier 2018"]
[Site "Rio Achaia"]
[Date "2018.07.10"]
[Round "1"]
[White "Dimitrov, Atanas"]
[Black "Naoum, Spyridon"]
[Result "0-1"]
[ECO "A05"]
[WhiteElo "2294"]
[BlackElo "2335"]
[Annotator "NA"]
[PlyCount "98"]
[EventDate "2018.07.10"]
[EventType "team-tourn"]
[EventCountry "GRE"]
[SourceTitle "playchess.com"]
[Source "ChessBase"]
[SourceQuality "1"]
[TimeControl "40/5400+30:1800+30"]

1. Nf3 {[%emt 0:00:00]} Nf6 {[%emt 0:03:07]} 2. g3 {[%emt 0:00:07]} g6 {[%emt 0:00:05]} 3. Bg2 {[%emt 0:00:09]} Bg7 {[%emt 0:00:03]} 4. O-O {[%emt 0:00:42]} O-O {[%emt 0:00:05]} 5. d4 {[%emt 0:05:53]} d6 {[%emt 0:00:08]} 6. Nc3 {[%emt 0:04:23]} Nc6 {[%emt 0:03:01]} 7. h3 {[%emt 0:15:41]} e5 {[%emt 0:06:07]} 8. dxe5 {[%emt 0:08:52]} dxe5 {[%emt 0:00:06]} 9. e4 {[%emt 0:00:11]} Be6 {[%emt 0:01:02]} 10. Be3 {[%emt 0:00:53]} Qe7 {[%emt 0:07:41]} 11. Qe2 {[%emt 0:14:12]} Rfd8 {[%emt 0:05:15]} 12. Ng5 {[%emt 0:04:31]} Nd4 {[%emt 0:03:12]} 13. Bxd4 {[%emt 0:00:51]} exd4 {[%emt 0:00:57]} 14. Nxe6 {[%emt 0:00:33]} Qxe6 {[%emt 0:03:40]} 15. Na4 {[%emt 0:07:53]} Nd7 {[%emt 0:06:57]} 16. Rad1 {[%emt 0:11:31]} Qxa2 {[%emt 0:02:37]} 17. b3 {[%emt 0:00:05]} Qa3 {[%emt 0:17:23]} 18. e5 {[%emt 0:00:44]} Nxe5 {[%emt 0:11:14]} 19. Bxb7 {[%emt 0:06:46]} Rab8 {[%emt 0:00:01]} 20. Ba6 {[%emt 0:07:48]} c5 {[%emt 0:05:43]} 21. f4 {[%emt 0:02:33]} Nc6 {[%emt 0:02:43]} 22. Rfe1 {[%emt 0:01:05]} Na5 {[%emt 0:04:19]} 23. Bc4 {[%emt 0:05:19]} Rf8 {[%emt 0:03:33]} 24. Qd3 {[%emt 0:00:41]} Nxc4 {[%emt 0:04:33]} 25. Qxc4 {[%emt 0:00:01]} Rb4 {[%emt 0:01:53]} 26. Qd5 {[%emt 0:00:05]} Rxa4 {[%emt 0:00:55]} 27. bxa4 {[%emt 0:00:07]} Qxg3+ {[%emt 0:00:05]} 28. Qg2 {[%emt 0:00:04]} Qxf4 {[%emt 0:00:08]} 29. Re7 {[%emt 0:01:15]} a5 {[%emt 0:02:39]} 30. Rf1 {[%emt 0:00:49]} Qd6 {[%emt 0:00:08]} 31. Qe4 {[%emt 0:01:04]} c4 {[%emt 0:00:50]} 32. Kg2 {[%emt 0:00:06]} d3 {[%emt 0:00:43]} 33. cxd3 {[%emt 0:00:42]} cxd3 {[%emt 0:00:06]} 34. Rd1 {[%emt 0:00:41]} d2 {[%emt 0:00:54]} 35. Re8 {[%emt 0:00:35]} Bc3 {[%emt 0:01:55]} 36. Rxf8+ {[%emt 0:00:02]} Kxf8 {[%emt 0:00:18]} 37. Qa8+ {[%emt 0:00:23]} Kg7 {[%emt 0:00:12]} 38. Qe4 {[%emt 0:00:02]} h5 {[%emt 0:01:24]} 39. Qf3 {[%emt 0:00:04]} Bb4 {[%emt 0:00:13]} 40. Qe4 {[%emt 0:00:00]} f5 {[%emt 0:00:00]} 41. Qb7+ {[%emt 0:03:00]} Kh6 {[%emt 0:00:52]} 42. Qf3 {[%emt 0:00:23]} Qe5 {[%emt 0:01:15]} 43. Rf1 {[%emt 0:02:37]} g5 {[%emt 0:01:55]} 44. Qd3 {[%emt 0:01:42]} Kg6 {[%emt 0:03:19]} 45. Rd1 {[%emt 0:06:19]} g4 {[%emt 0:02:31]} 46. h4 {[%emt 0:01:15]} Qe6 {[%emt 0:09:31]} 47. Rf1 {[%emt 0:02:16]} Qc6+ {[%emt 0:00:53]} 48. Kg1 {[%emt 0:09:25]} Bc5+ {[%emt 0:00:42]} 49. Kh2 {[%emt 0:00:04]} Qd6+ {[%emt 0:00:04]} 0-1

[Event "46th GRE-chT Premier 2018"]
[Site "Rio Achaia"]
[Date "2018.07.10"]
[Round "1"]
[White "Spyropoulos, Nikolaos"]
[Black "Rousos, Stamatios"]
[Result "1-0"]
[ECO "B62"]
[WhiteElo "2293"]
[BlackElo "1700"]
[Annotator "NA"]
[PlyCount "51"]
[EventDate "2018.07.10"]
[EventType "team-tourn"]
[EventCountry "GRE"]
[SourceTitle "playchess.com"]
[Source "ChessBase"]
[SourceQuality "1"]
[TimeControl "40/5400+30:1800+30"]

1. e4 {[%emt 0:00:00]} c5 {[%emt 0:00:00]} 2. Nf3 {[%emt 0:00:00]} d6 {[%emt 0:00:00]} 3. d4 {[%emt 0:00:00]} cxd4 {[%emt 0:00:04]} 4. Nxd4 {[%emt 0:00:00]} Nf6 {[%emt 0:00:22]} 5. Nc3 {[%emt 0:00:00]} Nc6 {[%emt 0:00:27]} 6. Bg5 {[%emt 0:00:00]} e6 {[%emt 0:00:20]} 7. Qd3 {[%emt 0:00:00]} Be7 {[%emt 0:01:02]} 8. O-O-O {[%emt 0:00:26]} O-O {[%emt 0:01:49]} 9. h4 {[%emt 0:01:37]} h6 {[%emt 0:01:10]} 10. Nxc6 {[%emt 0:01:53]} bxc6 {[%emt 0:00:06]} 11. Be2 {[%emt 0:00:28]} Rb8 {[%emt 0:08:05]} 12. Qg3 {[%emt 0:09:05]} hxg5 {[%emt 0:52:33]} 13. hxg5 {[%emt 0:00:31]} Nh7 {[%emt 0:01:23]} 14. f4 {[%emt 0:03:53]} Bxg5 {[%emt 0:03:52]} 15. fxg5 {[%emt 0:04:32]} Qxg5+ {[%emt 0:00:09]} 16. Qxg5 {[%emt 0:00:05]} Nxg5 {[%emt 0:00:04]} 17. Rh5 {[%emt 0:18:21]} f6 {[%emt 0:00:36]} 18. Rxd6 {[%emt 0:00:07]} c5 {[%emt 0:06:25]} 19. Rc6 {[%emt 0:08:46]} Bb7 {[%emt 0:00:45]} 20. Rxc5 {[%emt 0:00:15]} Bxe4 {[%emt 0:05:15]} 21. Rhxg5 {[%emt 0:03:28]} fxg5 {[%emt 0:00:06]} 22. Nxe4 {[%emt 0:00:04]} Rf4 {[%emt 0:03:57]} 23. Re5 {[%emt 0:07:10]} Kf7 {[%emt 0:02:17]} 24. Bc4 {[%emt 0:01:22]} Rb6 {[%emt 0:01:14]} 25. g3 {[%emt 0:01:27]} Rg4 {[%emt 0:00:45]} 26. Be2 {[%emt 0:00:08]} 1-0

[Event "46th GRE-chT Premier 2018"]
[Site "Rio Achaia"]
[Date "2018.07.10"]
[Round "1"]
[White "Cibickova, Zuzana"]
[Black "Richterova, Natasa"]
[Result "1/2-1/2"]
[ECO "B10"]
[WhiteElo "2292"]
[BlackElo "2146"]
[Annotator "NA"]
[PlyCount "82"]
[EventDate "2018.07.10"]
[EventType "team-tourn"]
[EventCountry "GRE"]
[SourceTitle "playchess.com"]
[Source "ChessBase"]
[SourceQuality "1"]
[TimeControl "40/5400+30:1800+30"]

1. e4 {[%emt 0:00:00]} c6 {[%emt 0:00:41]} 2. Nf3 {[%emt 0:00:21]} d5 {[%emt 0:00:11]} 3. Nc3 {[%emt 0:00:19]} g6 {[%emt 0:02:14]} 4. h3 {[%emt 0:02:39]} Bg7 {[%emt 0:00:24]} 5. d4 {[%emt 0:00:14]} e6 {[%emt 0:05:32]} 6. Bf4 {[%emt 0:10:03]} Nd7 {[%emt 0:03:30]} 7. Qd2 {[%emt 0:02:35]} Ne7 {[%emt 0:06:53]} 8. O-O-O {[%emt 0:06:48]} Qa5 {[%emt 0:00:52]} 9. Kb1 {[%emt 0:09:38]} dxe4 {[%emt 0:03:41]} 10. Nxe4 {[%emt 0:03:38]} Qxd2 {[%emt 0:00:14]} 11. Nd6+ {[%emt 0:00:20]} Kf8 {[%emt 0:00:09]} 12. Bxd2 {[%emt 0:04:31]} Nf5 {[%emt 0:06:14]} 13. Nxf5 {[%emt 0:07:51]} exf5 {[%emt 0:01:38]} 14. d5 {[%emt 0:22:45]} cxd5 {[%emt 0:03:14]} 15. Bb4+ {[%emt 0:00:32]} Kg8 {[%emt 0:00:12]} 16. Rxd5 {[%emt 0:01:32]} Bf6 {[%emt 0:00:27]} 17. Bd6 {[%emt 0:08:55]} Kg7 {[%emt 0:00:50]} 18. Bb5 {[%emt 0:01:15]} Nb6 {[%emt 0:03:56]} 19. Rdd1 {[%emt 0:01:54]} a6 {[%emt 0:00:57]} 20. Bd3 {[%emt 0:00:26]} Re8 {[%emt 0:05:08]} 21. Rhe1 {[%emt 0:00:37]} Rxe1 {[%emt 0:00:53]} 22. Rxe1 {[%emt 0:00:03]} Be6 {[%emt 0:00:08]} 23. Be5 {[%emt 0:01:48]} Bd5 {[%emt 0:07:09]} 24. b3 {[%emt 0:05:55]} Bxf3 {[%emt 0:01:50]} 25. gxf3 {[%emt 0:00:08]} Bxe5 {[%emt 0:00:13]} 26. Rxe5 {[%emt 0:00:04]} Kf6 {[%emt 0:00:12]} 27. Re1 {[%emt 0:02:31]} Nd5 {[%emt 0:00:46]} 28. c4 {[%emt 0:01:24]} Nf4 {[%emt 0:00:45]} 29. Bf1 {[%emt 0:00:02]} Rd8 {[%emt 0:01:09]} 30. Kc2 {[%emt 0:00:15]} Ne6 {[%emt 0:00:38]} 31. Kc3 {[%emt 0:01:14]} Kg5 {[%emt 0:00:53]} 32. b4 {[%emt 0:01:40]} Kf4 {[%emt 0:00:59]} 33. Bg2 {[%emt 0:00:41]} b6 {[%emt 0:00:31]} 34. h4 {[%emt 0:01:51]} h6 {[%emt 0:01:43]} 35. a4 {[%emt 0:01:00]} Rd7 {[%emt 0:02:46]} 36. a5 {[%emt 0:01:06]} bxa5 {[%emt 0:00:15]} 37. bxa5 {[%emt 0:00:01]} Nd4 {[%emt 0:03:03]} 38. Rb1 {[%emt 0:00:49]} Ne2+ {[%emt 0:17:53]} 39. Kc2 {[%emt 0:00:01]} Nd4+ {[%emt 0:00:10]} 40. Kc3 {[%emt 0:00:00]} Ne2+ {[%emt 0:00:00]} 41. Kc2 {[%emt 0:00:48]} Nd4+ {[%emt 0:17:35]} 1/2-1/2